[Event "World Junior U20 Girls 2018"]
[Site "Gebze"]
[Date "2018.09.06"]
[Round "2"]
[White "Mahalakshmi, M."]
[Black "Ayan, Bengu Sena"]
[Result "1-0"]
[ECO "D78"]
[WhiteElo "2213"]
[BlackElo "1976"]
[Annotator "NA"]
[PlyCount "87"]
[EventDate "2018.09.05"]
[EventType "swiss"]
[EventCountry "TUR"]
[SourceTitle "playchess.com"]
[Source "ChessBase"]
[SourceQuality "1"]
[TimeControl "40/5400+30:1800+30"]

1. Nf3 {[%emt 0:00:30]} d5 {[%emt 0:00:30]} 2. g3 {[%emt 0:00:00]} g6 {[%emt 0:00:30]} 3. Bg2 {[%emt 0:00:00]} Bg7 {[%emt 0:00:30]} 4. d4 {[%emt 0:00:00]} Nf6 {[%emt 0:01:30]} 5. O-O {[%emt 0:00:00]} O-O {[%emt 0:02:30]} 6. c4 {[%emt 0:00:00]} c6 {[%emt 0:00:30]} 7. Qb3 {[%emt 0:00:00]} Nbd7 {[%emt 0:08:30]} 8. cxd5 {[%emt 0:04:30]} cxd5 {[%emt 0:00:30]} 9. Nc3 {[%emt 0:01:30]} Nb6 {[%emt 0:02:30]} 10. Ne5 {[%emt 0:02:30]} Be6 {[%emt 0:11:30]} 11. a4 {[%emt 0:03:30]} Ne4 {[%emt 0:13:30]} 12. Rd1 {[%emt 0:12:30]} Nxc3 {[%emt 0:16:30]} 13. Qxc3 {[%emt 0:05:30]} Rc8 {[%emt 0:05:30]} 14. Qb4 {[%emt 0:06:30]} Qd6 {[%emt 0:03:30]} 15. Qxd6 {[%emt 0:02:30]} exd6 {[%emt 0:00:30]} 16. Nf3 {[%emt 0:00:30]} Rc2 {[%emt 0:00:30]} 17. a5 {[%emt 0:00:30]} Nd7 {[%emt 0:00:30]} 18. Kf1 {[%emt 0:07:30]} Nf6 {[%emt 0:12:04]} 19. Ne1 {[%emt 0:02:30]} Rc6 {[%emt 0:04:03]} 20. Nd3 {[%emt 0:11:30]} Ne4 {[%emt 0:06:38]} 21. f3 {[%emt 0:00:30]} Nf6 {[%emt 0:00:18]} 22. Bd2 {[%emt 0:01:30]} Nd7 {[%emt 0:04:15]} 23. Bc3 {[%emt 0:03:30]} Rc4 {[%emt 0:00:58]} 24. e3 {[%emt 0:02:30]} f5 {[%emt 0:00:42]} 25. Bb4 {[%emt 0:04:30]} Rc6 {[%emt 0:00:04]} 26. Rac1 {[%emt 0:01:30]} Rfc8 {[%emt 0:00:02]} 27. Bxd6 {[%emt 0:00:30]} Rc2 {[%emt 0:04:08]} 28. Bb4 {[%emt 0:03:30]} Rxc1 {[%emt 0:00:30]} 29. Rxc1 {[%emt 0:00:30]} Rxc1+ {[%emt 0:00:30]} 30. Nxc1 {[%emt 0:00:30]} b6 {[%emt 0:00:00]} 31. Ke2 {[%emt 0:03:30]} Kf7 {[%emt 0:00:23]} 32. Kd2 {[%emt 0:01:30]} Nb8 {[%emt 0:00:24]} 33. Bd6 {[%emt 0:01:19]} Nc6 {[%emt 0:00:06]} 34. axb6 {[%emt 0:00:44]} axb6 {[%emt 0:00:01]} 35. Bc7 {[%emt 0:01:13]} b5 {[%emt 0:00:45]} 36. Bf1 {[%emt 0:00:19]} b4 {[%emt 0:00:00]} 37. Bb5 {[%emt 0:01:48]} Na7 {[%emt 0:00:00]} 38. Ba4 {[%emt 0:00:12]} Bf8 {[%emt 0:00:31]} 39. Nd3 {[%emt 0:01:02]} Nc8 {[%emt 0:00:34]} 40. Ba5 {[%emt 0:00:00]} Nd6 {[%emt 0:00:41]} 41. b3 {[%emt 0:02:53]} Bc8 {[%emt 0:08:23]} 42. Bxb4 {[%emt 0:02:30]} Ba6 {[%emt 0:00:30]} 43. Bc6 {[%emt 0:00:30]} Bxd3 {[%emt 0:03:30]} 44. Bxd5+ {[%emt 0:00:30]} 1-0

[Event "World Junior U20 Girls 2018"]
[Site "Gebze"]
[Date "2018.09.06"]
[Round "2"]
[White "Caglar, Sila"]
[Black "Ince, Safiye Oyku"]
[Result "1/2-1/2"]
[ECO "B48"]
[WhiteElo "2208"]
[BlackElo "1905"]
[Annotator "NA"]
[PlyCount "71"]
[EventDate "2018.09.05"]
[EventType "swiss"]
[EventCountry "TUR"]
[SourceTitle "playchess.com"]
[Source "ChessBase"]
[SourceQuality "1"]
[TimeControl "40/5400+30:1800+30"]

1. e4 {[%emt 0:00:30]} c5 {[%emt 0:00:30]} 2. Nf3 {[%emt 0:00:00]} e6 {[%emt 0:00:30]} 3. d4 {[%emt 0:00:00]} cxd4 {[%emt 0:00:30]} 4. Nxd4 {[%emt 0:00:30]} Nc6 {[%emt 0:00:00]} 5. Nc3 {[%emt 0:00:00]} Qc7 {[%emt 0:00:00]} 6. Be3 {[%emt 0:00:00]} a6 {[%emt 0:00:00]} 7. Qf3 {[%emt 0:00:00]} Nf6 {[%emt 0:02:00]} 8. O-O-O {[%emt 0:02:00]} b5 {[%emt 0:01:30]} 9. Qg3 {[%emt 0:35:30]} Qxg3 {[%emt 0:13:30]} 10. hxg3 {[%emt 0:00:30]} Bb7 {[%emt 0:00:30]} 11. f3 {[%emt 0:00:30]} Bc5 {[%emt 0:02:30]} 12. Kb1 {[%emt 0:03:30]} d6 $11 {[%emt 0:07:30]} 13. Nce2 {[%emt 0:15:30]} Ne5 {[%emt 0:11:30]} 14. Bc1 {[%emt 0:11:30]} d5 {[%emt 0:04:30]} 15. Nb3 {[%emt 0:02:30]} Bb6 {[%emt 0:04:30]} 16. exd5 {[%emt 0:01:30]} Nxd5 {[%emt 0:01:30]} 17. Nf4 {[%emt 0:01:30]} Rc8 {[%emt 0:02:30]} 18. Rh5 {[%emt 0:03:30]} Nc4 {[%emt 0:04:30]} 19. Nxd5 {[%emt 0:01:57]} Bxd5 {[%emt 0:00:30]} 20. Bd3 {[%emt 0:01:02]} h6 {[%emt 0:02:30]} 21. Re1 {[%emt 0:01:04]} Kd7 {[%emt 0:08:30]} 22. g4 {[%emt 0:02:53]} Nd6 {[%emt 0:08:30]} 23. Reh1 {[%emt 0:02:17]} Rhe8 {[%emt 0:01:30]} 24. g5 {[%emt 0:01:51]} hxg5 {[%emt 0:00:30]} 25. Rh7 {[%emt 0:00:03]} f6 {[%emt 0:00:30]} 26. Rxg7+ {[%emt 0:00:48]} Re7 {[%emt 0:00:30]} 27. Rxe7+ {[%emt 0:01:26]} Kxe7 {[%emt 0:00:00]} 28. Rh7+ {[%emt 0:00:48]} Kf8 {[%emt 0:01:30]} 29. Bd2 {[%emt 0:00:48]} Kg8 {[%emt 0:01:30]} 30. Rh3 {[%emt 0:01:29]} Bc4 {[%emt 0:01:30]} 31. Bc3 {[%emt 0:02:09]} Bxd3 {[%emt 0:00:30]} 32. cxd3 {[%emt 0:00:30]} Kg7 {[%emt 0:00:30]} 33. g4 {[%emt 0:01:41]} Kg6 {[%emt 0:00:30]} 34. Rh1 {[%emt 0:04:03]} Nf7 {[%emt 0:02:51]} 35. Nd2 {[%emt 0:02:33]} Rd8 {[%emt 0:00:59]} 36. Kc2 {[%emt 0:00:49]} 1/2-1/2

[Event "World Junior U20 Girls 2018"]
[Site "Gebze"]
[Date "2018.09.06"]
[Round "2"]
[White "Kubicka, Anna"]
[Black "Koljevic, Nikolina"]
[Result "1-0"]
[ECO "B66"]
[WhiteElo "2204"]
[BlackElo "1898"]
[Annotator "NA"]
[PlyCount "63"]
[EventDate "2018.09.05"]
[EventType "swiss"]
[EventCountry "TUR"]
[SourceTitle "playchess.com"]
[Source "ChessBase"]
[SourceQuality "1"]
[TimeControl "40/5400+30:1800+30"]

1. e4 {[%emt 0:00:30]} c5 {[%emt 0:00:30]} 2. Nf3 {[%emt 0:00:30]} Nc6 {[%emt 0:00:30]} 3. d4 {[%emt 0:00:00]} cxd4 {[%emt 0:00:00]} 4. Nxd4 {[%emt 0:00:00]} Nf6 {[%emt 0:00:00]} 5. Nc3 {[%emt 0:00:00]} d6 {[%emt 0:00:00]} 6. Bg5 {[%emt 0:00:00]} e6 {[%emt 0:00:00]} 7. Qd2 {[%emt 0:00:30]} a6 {[%emt 0:00:30]} 8. O-O-O {[%emt 0:00:30]} h6 {[%emt 0:00:00]} 9. Nxc6 {[%emt 0:00:30]} bxc6 {[%emt 0:00:00]} 10. Bf4 {[%emt 0:00:30]} d5 {[%emt 0:00:30]} 11. Qe3 {[%emt 0:02:30]} Bb4 {[%emt 0:06:30]} 12. Be2 {[%emt 0:12:30]} O-O {[%emt 0:16:30]} 13. e5 {[%emt 0:00:30]} Nd7 {[%emt 0:08:30]} 14. Bxh6 {[%emt 0:02:30]} gxh6 {[%emt 0:07:30]} 15. Rd4 {[%emt 0:00:30]} f5 {[%emt 0:13:30]} 16. exf6 {[%emt 0:14:30]} Qxf6 {[%emt 0:00:30]} 17. Rxb4 {[%emt 0:02:30]} Kh8 {[%emt 0:04:30]} 18. g3 {[%emt 0:06:30]} Qg5 {[%emt 0:08:30]} 19. Qxg5 {[%emt 0:09:30]} hxg5 {[%emt 0:00:30]} 20. Nd1 {[%emt 0:08:30]} Nf6 {[%emt 0:00:30]} 21. g4 {[%emt 0:02:30]} Kg7 {[%emt 0:03:30]} 22. h4 {[%emt 0:04:30]} Rh8 {[%emt 0:01:30]} 23. h5 {[%emt 0:00:00]} e5 {[%emt 0:01:30]} 24. f3 {[%emt 0:01:00]} Bd7 {[%emt 0:05:30]} 25. Nf2 {[%emt 0:02:30]} Kh6 {[%emt 0:01:30]} 26. Nd3 {[%emt 0:00:30]} e4 {[%emt 0:02:26]} 27. Ne5 {[%emt 0:05:30]} exf3 {[%emt 0:02:06]} 28. Bxf3 {[%emt 0:01:30]} Rhf8 {[%emt 0:02:04]} 29. Rb6 {[%emt 0:02:30]} Rab8 {[%emt 0:03:25]} 30. Nxd7 {[%emt 0:00:30]} Nxd7 {[%emt 0:00:23]} 31. Rxc6+ {[%emt 0:00:30]} Kh7 {[%emt 0:00:03]} 32. Bxd5 {[%emt 0:00:30]} 1-0

[Event "World Junior U20 Girls 2018"]
[Site "Gebze"]
[Date "2018.09.06"]
[Round "2"]
[White "Beydullayeva, Govhar"]
[Black "Tian, Shi Yuan"]
[Result "1-0"]
[ECO "D61"]
[WhiteElo "2202"]
[BlackElo "1923"]
[Annotator "NA"]
[PlyCount "77"]
[EventDate "2018.09.05"]
[EventType "swiss"]
[EventCountry "TUR"]
[SourceTitle "playchess.com"]
[Source "ChessBase"]
[SourceQuality "1"]
[TimeControl "40/5400+30:1800+30"]

1. c4 {[%emt 0:00:30]} Nf6 {[%emt 0:00:30]} 2. Nc3 {[%emt 0:00:00]} e6 {[%emt 0:00:30]} 3. d4 {[%emt 0:00:00]} d5 {[%emt 0:00:00]} 4. Bg5 {[%emt 0:00:30]} Nbd7 {[%emt 0:00:00]} 5. e3 {[%emt 0:03:30]} c6 {[%emt 0:03:30]} 6. Nf3 $11 {[%emt 0:01:30]} Be7 {[%emt 0:01:30]} 7. Qc2 {[%emt 0:02:30]} O-O {[%emt 0:01:30]} 8. Bd3 {[%emt 0:00:30]} h6 {[%emt 0:04:30]} 9. Bh4 {[%emt 0:00:30]} dxc4 {[%emt 0:03:30]} 10. Bxc4 {[%emt 0:00:30]} b5 {[%emt 0:00:00]} 11. Bd3 {[%emt 0:05:30]} Bb7 {[%emt 0:02:00]} 12. e4 {[%emt 0:08:30]} Nh5 {[%emt 0:17:30]} 13. Bxe7 {[%emt 0:04:30]} Qxe7 {[%emt 0:00:00]} 14. Qd2 {[%emt 0:12:30]} e5 {[%emt 0:07:00]} 15. O-O-O {[%emt 0:12:30]} a6 {[%emt 0:13:30]} 16. g4 {[%emt 0:04:30]} Nf4 {[%emt 0:05:30]} 17. Nxe5 {[%emt 0:01:30]} Nxd3+ {[%emt 0:01:30]} 18. Nxd3 {[%emt 0:00:30]} b4 {[%emt 0:08:30]} 19. Na4 {[%emt 0:00:30]} Qxe4 {[%emt 0:09:21]} 20. Ndc5 {[%emt 0:02:30]} Nxc5 {[%emt 0:00:19]} 21. Nxc5 {[%emt 0:00:00]} Qe7 {[%emt 0:00:41]} 22. Rhe1 {[%emt 0:02:00]} Qc7 {[%emt 0:00:44]} 23. g5 {[%emt 0:04:30]} hxg5 {[%emt 0:05:59]} 24. Qxg5 {[%emt 0:01:30]} Rae8 {[%emt 0:00:05]} 25. Rxe8 {[%emt 0:09:30]} Rxe8 {[%emt 0:00:30]} 26. Rg1 {[%emt 0:00:30]} g6 {[%emt 0:00:30]} 27. h4 {[%emt 0:00:30]} Qe7 {[%emt 0:05:42]} 28. Qf4 {[%emt 0:07:30]} Bc8 {[%emt 0:01:59]} 29. h5 {[%emt 0:00:37]} Kg7 {[%emt 0:00:56]} 30. Nd3 {[%emt 0:05:06]} Qe4 {[%emt 0:03:10]} 31. h6+ {[%emt 0:01:22]} Kh7 {[%emt 0:01:02]} 32. Qxf7+ {[%emt 0:01:35]} Kxh6 {[%emt 0:00:01]} 33. Re1 {[%emt 0:02:14]} Qxd3 {[%emt 0:01:56]} 34. Qxe8 {[%emt 0:00:24]} Qc4+ {[%emt 0:01:48]} 35. Kb1 {[%emt 0:00:05]} Bf5+ {[%emt 0:00:00]} 36. Ka1 {[%emt 0:00:05]} Qd5 {[%emt 0:01:31]} 37. Qh8+ {[%emt 0:01:08]} Kg5 {[%emt 0:00:08]} 38. Rg1+ {[%emt 0:00:00]} Bg4 {[%emt 0:01:07]} 39. Qe5+ {[%emt 0:00:26]} 1-0

[Event "World Junior U20 Girls 2018"]
[Site "Gebze"]
[Date "2018.09.06"]
[Round "2"]
[White "Du, Yuxin"]
[Black "De Silva, Tenara"]
[Result "1/2-1/2"]
[ECO "B11"]
[WhiteElo "2146"]
[BlackElo "1764"]
[Annotator "NA"]
[PlyCount "81"]
[EventDate "2018.09.05"]
[EventType "swiss"]
[EventCountry "TUR"]
[SourceTitle "playchess.com"]
[Source "ChessBase"]
[SourceQuality "1"]
[TimeControl "40/5400+30:1800+30"]

1. e4 {[%emt 0:02:30]} c6 {[%emt 0:00:30]} 2. Nc3 {[%emt 0:01:30]} d5 {[%emt 0:01:30]} 3. Nf3 {[%emt 0:00:30]} Nf6 {[%emt 0:04:30]} 4. e5 {[%emt 0:05:30]} Ne4 {[%emt 0:00:30]} 5. Nxe4 {[%emt 0:28:30]} dxe4 {[%emt 0:00:30]} 6. Ng5 {[%emt 0:00:30]} Qd5 {[%emt 0:01:30]} 7. Qe2 {[%emt 0:11:30]} Qxe5 {[%emt 0:04:30]} 8. Nxe4 {[%emt 0:00:30]} Bf5 {[%emt 0:01:30]} 9. d3 {[%emt 0:01:30]} e6 {[%emt 0:03:30]} 10. f4 {[%emt 0:10:30]} Qa5+ {[%emt 0:04:30]} 11. Bd2 {[%emt 0:01:30]} Qb6 {[%emt 0:00:30]} 12. O-O-O {[%emt 0:04:30]} h5 {[%emt 0:05:30]} 13. h3 {[%emt 0:05:30]} Bxe4 {[%emt 0:03:30]} 14. dxe4 {[%emt 0:01:30]} Nd7 {[%emt 0:00:00]} 15. Bc3 {[%emt 0:07:33]} O-O-O {[%emt 0:01:00]} 16. g3 {[%emt 0:03:07]} Bc5 {[%emt 0:11:30]} 17. Bg2 {[%emt 0:06:13]} Nf6 {[%emt 0:04:30]} 18. Rxd8+ {[%emt 0:02:49]} Qxd8 {[%emt 0:01:30]} 19. Rd1 {[%emt 0:00:46]} Qb6 {[%emt 0:00:30]} 20. Rd3 {[%emt 0:01:43]} Qb5 {[%emt 0:11:30]} 21. Bf3 {[%emt 0:01:09]} Rd8 {[%emt 0:04:30]} 22. Rxd8+ {[%emt 0:00:35]} Kxd8 {[%emt 0:00:00]} 23. Qxb5 {[%emt 0:00:40]} cxb5 {[%emt 0:00:00]} 24. Bxf6+ {[%emt 0:00:42]} gxf6 {[%emt 0:00:00]} 25. Bxh5 {[%emt 0:00:26]} Bf2 {[%emt 0:04:00]} 26. Bxf7 {[%emt 0:00:22]} Ke7 {[%emt 0:00:30]} 27. Bg6 {[%emt 0:01:08]} Bxg3 {[%emt 0:00:30]} 28. f5 {[%emt 0:00:00]} exf5 {[%emt 0:00:30]} 29. Bxf5 {[%emt 0:00:36]} b4 {[%emt 0:00:30]} 30. Kd2 {[%emt 0:00:24]} Kf7 {[%emt 0:01:30]} 31. c3 {[%emt 0:00:43]} bxc3+ {[%emt 0:00:00]} 32. Kxc3 {[%emt 0:00:13]} a5 {[%emt 0:00:00]} 33. Kc4 {[%emt 0:00:28]} b6 {[%emt 0:00:30]} 34. b3 {[%emt 0:01:05]} Bf2 {[%emt 0:00:00]} 35. Kd3 {[%emt 0:00:34]} Kg7 {[%emt 0:00:00]} 36. Ke2 {[%emt 0:00:30]} Bd4 {[%emt 0:00:30]} 37. Kf3 {[%emt 0:00:30]} Kh6 {[%emt 0:00:30]} 38. Kg4 {[%emt 0:00:30]} Be5 {[%emt 0:00:00]} 39. h4 {[%emt 0:00:00]} Bd4 {[%emt 0:00:00]} 40. Bd7 {[%emt 0:00:00]} Be5 {[%emt 0:00:00]} 41. Be8 {[%emt 0:06:44]} 1/2-1/2

[Event "World Junior U20 Girls 2018"]
[Site "Gebze"]
[Date "2018.09.06"]
[Round "2"]
[White "Serikbay, Assel"]
[Black "Chitlange Sakshi"]
[Result "1/2-1/2"]
[ECO "E06"]
[WhiteElo "2125"]
[BlackElo "2279"]
[Annotator "NA"]
[PlyCount "95"]
[EventDate "2018.09.05"]
[EventType "swiss"]
[EventCountry "TUR"]
[SourceTitle "playchess.com"]
[Source "ChessBase"]
[SourceQuality "1"]
[TimeControl "40/5400+30:1800+30"]

1. d4 {[%emt 0:00:30]} Nf6 {[%emt 0:00:30]} 2. c4 {[%emt 0:00:30]} e6 {[%emt 0:00:30]} 3. g3 {[%emt 0:00:00]} d5 {[%emt 0:01:30]} 4. Nf3 {[%emt 0:01:00]} Be7 {[%emt 0:02:30]} 5. Bg2 {[%emt 0:00:00]} O-O {[%emt 0:00:00]} 6. O-O {[%emt 0:00:00]} c6 {[%emt 0:02:00]} 7. Qc2 {[%emt 0:02:30]} b6 {[%emt 0:00:30]} 8. Nbd2 {[%emt 0:03:30]} Bb7 {[%emt 0:01:30]} 9. e4 {[%emt 0:00:30]} Na6 {[%emt 0:00:00]} 10. e5 {[%emt 0:03:30]} Nd7 {[%emt 0:02:00]} 11. b3 {[%emt 0:13:30] E06: Closed Catalan: Early deviations} (11. cxd5) 11... Rc8 {[%emt 0:02:30]} 12. Bb2 {[%emt 0:00:30]} Nb4 {[%emt 0:01:30]} 13. Qb1 {[%emt 0:01:30]} c5 {[%emt 0:01:30]} 14. a3 {[%emt 0:05:30]} Na6 $146 {[%emt 0:02:30]} ({Predecessor:} 14... Nc6 15. cxd5 exd5 16. Bh3 cxd4 17. b4 Ndxe5 18. Bxc8 Qxc8 {1-0 (42) Esenbek Uulu,I (2098)-Imanaliev,T (2355) Bishkek 2012}) 15. Rd1 {[%emt 0:09:30]} Qc7 {[%emt 0:01:30]} 16. Qd3 {[%emt 0:27:30]} Qb8 {[%emt 0:13:30]} 17. cxd5 {[%emt 0:02:30]} exd5 {[%emt 0:00:30]} 18. Qf5 {[%emt 0:02:30]} Rcd8 {[%emt 0:08:30]} 19. e6 {[%emt 0:01:30]} fxe6 {[%emt 0:05:30]} 20. Qxe6+ {[%emt 0:00:30]} Rf7 {[%emt 0:00:30]} 21. Qe2 {[%emt 0:03:30]} Nc7 {[%emt 0:06:30]} 22. Nf1 {[%emt 0:02:21]} Rdf8 {[%emt 0:07:30]} 23. Rd2 {[%emt 0:03:54]} Ba6 {[%emt 0:03:30]} 24. Qd1 {[%emt 0:00:21]} c4 {[%emt 0:11:30]} 25. bxc4 {[%emt 0:03:22]} dxc4 {[%emt 0:00:00]} 26. Ne3 {[%emt 0:00:15]} b5 {[%emt 0:02:00]} 27. Ng4 {[%emt 0:03:20]} Bb7 {[%emt 0:09:26]} 28. Nfe5 {[%emt 0:01:32]} Nxe5 {[%emt 0:00:31]} 29. Nxe5 {[%emt 0:00:39]} Bxg2 {[%emt 0:00:24]} 30. Nxf7 {[%emt 0:01:59]} Ba8 {[%emt 0:04:58]} 31. Ne5 {[%emt 0:00:44]} Qb7 {[%emt 0:00:02]} 32. f3 {[%emt 0:01:59]} Nd5 {[%emt 0:00:07]} 33. Qc2 {[%emt 0:02:12]} Bg5 {[%emt 0:07:10]} 34. Re2 {[%emt 0:00:16]} Ne3 {[%emt 0:00:00]} 35. Qe4 {[%emt 0:00:34]} Qc8 {[%emt 0:02:27]} 36. d5 {[%emt 0:01:01]} Nxd5 {[%emt 0:00:33]} 37. Qd4 {[%emt 0:01:44]} Bf6 {[%emt 0:00:03]} 38. Rc1 {[%emt 0:00:57]} Qb7 {[%emt 0:00:27]} 39. Qg4 {[%emt 0:00:26]} Re8 {[%emt 0:01:11]} 40. Bd4 {[%emt 0:00:00]} Qa6 {[%emt 0:00:00]} 41. Qd7 {[%emt 0:05:24]} Qe6 $18 {[%emt 0:07:11]} 42. Qxa7 {[%emt 0:04:30]} Ne7 {[%emt 0:03:30]} 43. Rce1 {[%emt 0:03:30]} Qd5 {[%emt 0:00:30]} 44. Qc5 {[%emt 0:04:41]} Qb7 {[%emt 0:00:30]} 45. Qb6 {[%emt 0:01:25]} Qd5 {[%emt 0:00:30]} 46. Qc5 {[%emt 0:00:30]} Qb7 {[%emt 0:00:30]} 47. Qb6 {[%emt 0:10:52]} Qd5 {[%emt 0:01:30]} 48. Qc5 {[%emt 0:00:43]} 1/2-1/2

[Event "World Junior U20 Girls 2018"]
[Site "Gebze"]
[Date "2018.09.06"]
[Round "2"]
[White "Ozbay, Ece"]
[Black "Esti, Kubra Selenay"]
[Result "1-0"]
[ECO "C97"]
[WhiteElo "2114"]
[BlackElo "1662"]
[Annotator "NA"]
[PlyCount "73"]
[EventDate "2018.09.05"]
[EventType "swiss"]
[EventCountry "TUR"]
[SourceTitle "playchess.com"]
[Source "ChessBase"]
[SourceQuality "1"]
[TimeControl "40/5400+30:1800+30"]

1. e4 {[%emt 0:00:30]} e5 {[%emt 0:00:30]} 2. Nf3 {[%emt 0:00:30]} Nc6 {[%emt 0:00:30]} 3. Bb5 {[%emt 0:00:30]} a6 {[%emt 0:00:30]} 4. Ba4 {[%emt 0:00:00]} Nf6 {[%emt 0:00:00]} 5. O-O {[%emt 0:00:00]} b5 {[%emt 0:00:00]} 6. Bb3 {[%emt 0:00:00]} Be7 {[%emt 0:00:00]} 7. Re1 {[%emt 0:00:00]} d6 {[%emt 0:01:00]} 8. c3 {[%emt 0:00:00]} O-O {[%emt 0:00:30]} 9. h3 {[%emt 0:00:00]} Na5 {[%emt 0:00:30]} 10. Bc2 {[%emt 0:00:00]} c5 {[%emt 0:00:00]} 11. d4 {[%emt 0:00:00]} Qc7 {[%emt 0:00:00]} 12. d5 {[%emt 0:00:00]} Nb7 {[%emt 0:03:30]} 13. b3 {[%emt 0:02:00]} Bd7 {[%emt 0:02:30]} 14. Nbd2 {[%emt 0:00:30]} g6 {[%emt 0:01:30]} 15. Nf1 {[%emt 0:01:30]} Nh5 {[%emt 0:04:30]} 16. g4 {[%emt 0:02:30] C97: Closed Ruy Lopez: Chigorin Defence: 11 d4 Qc7, sidelines} Ng7 {[%emt 0:01:30]} 17. Ng3 {[%emt 0:00:30]} f6 {[%emt 0:06:30]} 18. Nh2 {[%emt 0:10:30] [#]} g5 $146 {[%emt 0:05:30]} ({Predecessor:} 18... a5 19. Bh6 b4 20. c4 Nd8 21. h4 Nf7 22. Bd2 Qc8 23. Kh1 a4 24. Rc1 axb3 25. axb3 Ra2 26. Rg1 Kh8 27. Be3 Kg8 {½-½ (27) Megaranto,S (2569)-Zhang,Z (2634) Singapore 2007}) 19. Nhf1 {[%emt 0:03:30]} Nd8 {[%emt 0:01:30]} 20. Ne3 {[%emt 0:04:30]} Nf7 {[%emt 0:00:30]} 21. Qf3 {[%emt 0:00:30]} Qc8 {[%emt 0:11:30]} 22. Kg2 $16 {[%emt 0:08:30]} Nh8 {[%emt 0:06:30]} 23. Nef5 {[%emt 0:02:30]} Ng6 {[%emt 0:05:30]} 24. Nxe7+ {[%emt 0:04:30]} Nxe7 {[%emt 0:00:30]} 25. Nf5 {[%emt 0:00:30]} Bxf5 {[%emt 0:08:30]} 26. gxf5 {[%emt 0:02:30]} Kf7 {[%emt 0:14:30]} 27. Bd2 {[%emt 0:02:30]} h5 {[%emt 0:10:38]} 28. a4 {[%emt 0:02:30]} Qd7 {[%emt 0:04:05]} 29. Bd3 {[%emt 0:02:30]} Rg8 {[%emt 0:03:47]} 30. Qe2 {[%emt 0:01:30]} g4 {[%emt 0:02:47]} 31. hxg4 {[%emt 0:02:30]} Ngxf5 {[%emt 0:01:14]} 32. exf5 {[%emt 0:07:30]} Rxg4+ {[%emt 0:01:39]} 33. Kf1 {[%emt 0:00:00]} Rag8 {[%emt 0:00:43]} 34. Qf3 {[%emt 0:01:00]} c4 {[%emt 0:02:09]} 35. bxc4 {[%emt 0:01:30]} bxc4 {[%emt 0:00:24]} 36. Be4 {[%emt 0:00:30]} h4 {[%emt 0:00:46]} 37. Ke2 {[%emt 0:01:30]} 1-0

[Event "World Junior U20 Girls 2018"]
[Site "Gebze"]
[Date "2018.09.06"]
[Round "2"]
[White "Dwilewicz, Katarzyna"]
[Black "Haussernot, Cecile"]
[Result "1-0"]
[ECO "C11"]
[WhiteElo "2081"]
[BlackElo "2237"]
[Annotator "NA"]
[PlyCount "53"]
[EventDate "2018.09.05"]
[EventType "swiss"]
[EventCountry "TUR"]
[SourceTitle "playchess.com"]
[Source "ChessBase"]
[SourceQuality "1"]
[TimeControl "40/5400+30:1800+30"]

1. e4 e6 2. d4 d5 3. Nc3 Nf6 4. e5 Nfd7 5. f4 c5 6. Nf3 Nc6 7. Be3 Be7 8. Qd2 O-O 9. h4 cxd4 10. Nxd4 Nxd4 11. Bxd4 Bxh4+ 12. Bf2 Be7 13. Bd3 f5 14. exf6 Nxf6 $16 15. O-O-O Qa5 16. Bd4 b5 17. g4 b4 18. Nb1 Ne4 19. Qh2 h6 20. Bxg7 Rxf4 21. Qxh6 Kf7 22. Qxf4+ Kxg7 23. Bxe4 dxe4 24. Qh6+ Kf7 25. Rhf1+ Kg8 26. Qg6+ Kh8 27. Rh1+ 1-0

[Event "World Junior U20 Girls 2018"]
[Site "Gebze"]
[Date "2018.09.06"]
[Round "2"]
[White "Lingur, Zalina"]
[Black "Duran, Esma Doga"]
[Result "1/2-1/2"]
[ECO "B46"]
[WhiteElo "2061"]
[BlackElo "1825"]
[Annotator "NA"]
[PlyCount "78"]
[EventDate "2018.09.05"]
[EventType "swiss"]
[EventCountry "TUR"]
[SourceTitle "playchess.com"]
[Source "ChessBase"]
[SourceQuality "1"]
[TimeControl "40/5400+30:1800+30"]

1. e4 {[%emt 0:03:30]} c5 {[%emt 0:00:30]} 2. Nf3 {[%emt 0:00:30]} e6 {[%emt 0:00:30]} 3. d4 {[%emt 0:00:30]} cxd4 {[%emt 0:00:30]} 4. Nxd4 {[%emt 0:00:00]} Nc6 {[%emt 0:00:00]} 5. Nc3 {[%emt 0:00:00]} a6 {[%emt 0:00:00]} 6. Nxc6 {[%emt 0:00:30]} bxc6 {[%emt 0:00:30]} 7. Bd3 {[%emt 0:00:30]} d5 $11 {[%emt 0:02:30] LiveBook: 878 Games} 8. O-O {[%emt 0:00:30]} Nf6 {[%emt 0:00:30]} 9. Re1 {[%emt 0:05:30]} Be7 {[%emt 0:00:30]} 10. e5 {[%emt 0:01:30]} Nd7 {[%emt 0:00:30]} 11. Qg4 {[%emt 0:00:00]} g6 {[%emt 0:16:30]} 12. Bh6 {[%emt 0:00:00]} Qc7 {[%emt 0:00:30]} 13. Qg3 {[%emt 0:06:30]} c5 {[%emt 0:12:30]} 14. Bg5 {[%emt 0:30:30]} Qd8 {[%emt 0:26:30]} 15. Bf4 {[%emt 0:08:30]} Bb7 {[%emt 0:05:30]} 16. a4 {[%emt 0:11:30]} Qc7 {[%emt 0:06:30]} 17. Bg5 {[%emt 0:01:30]} Qd8 {[%emt 0:00:00]} 18. Bxe7 {[%emt 0:05:30]} Qxe7 {[%emt 0:00:00]} 19. Nb1 {[%emt 0:00:30]} c4 {[%emt 0:16:26]} 20. Bf1 {[%emt 0:02:30]} Nc5 {[%emt 0:00:20]} 21. Nd2 {[%emt 0:00:30]} O-O {[%emt 0:02:35]} 22. h4 {[%emt 0:03:22]} h6 {[%emt 0:02:53]} 23. Qf4 {[%emt 0:02:49]} Kg7 {[%emt 0:01:04]} 24. a5 {[%emt 0:01:23]} Bc6 {[%emt 0:01:38]} 25. b4 {[%emt 0:02:24]} Nd7 {[%emt 0:00:30]} 26. c3 {[%emt 0:00:30]} f6 {[%emt 0:00:30]} 27. exf6+ {[%emt 0:00:30]} Qxf6 {[%emt 0:00:30]} 28. Qxf6+ {[%emt 0:00:30]} Rxf6 {[%emt 0:00:30]} 29. Nf3 {[%emt 0:00:30]} Re8 {[%emt 0:01:08]} 30. Ne5 {[%emt 0:10:17]} Nxe5 {[%emt 0:00:47]} 31. Rxe5 {[%emt 0:00:01]} Rf5 {[%emt 0:00:00]} 32. Rae1 {[%emt 0:00:42]} Kf6 {[%emt 0:00:26]} 33. R5e3 {[%emt 0:01:45]} Bd7 {[%emt 0:01:30]} 34. g3 {[%emt 0:00:30]} Kf7 {[%emt 0:01:08]} 35. Bh3 {[%emt 0:01:05]} Rf6 {[%emt 0:00:15]} 36. Re5 {[%emt 0:00:29]} Rf3 {[%emt 0:01:08]} 37. R5e3 {[%emt 0:00:56]} Rxe3 {[%emt 0:00:03]} 38. Rxe3 {[%emt 0:00:00]} Kf6 {[%emt 0:00:23]} 39. f4 {[%emt 0:00:44]} Bc6 {[%emt 0:00:41]} 1/2-1/2